fUST/lending_fUST_20250630
["ID","MTS","AMOUNT","RATE_DAILY","PERIOD"]
[368674227,1751291443891,-1034.0,0.00019146,2]
[368674228,1751291443901,-716.195754,0.00019157,2]
[368674229,1751291443910,-500.0,0.00019174,2]
[368674230,1751291443920,-1034.0,0.00019174,2]
[368674231,1751291443930,-198.87859106,0.00019178,2]
[368674232,1751291443940,-151.0,0.00019178,2]
[368674233,1751291443949,-500.0,0.00019178,2]
[368674234,1751291443958,-234.47094767,0.00019178,2]
[368674235,1751291443968,-518.19692437,0.00019178,7]
[368674236,1751291443977,-732.6008764,0.00019178,2]
[368674237,1751291443987,-273.3843016,0.00019178,2]
[368674238,1751291443996,-534.094577,0.00019178,2]
[368674239,1751291444006,-151.0,0.000192,2]
[368674240,1751291444016,-500.0,0.00019201,2]
[368674241,1751291444029,-1034.0,0.00019201,2]
[368674242,1751291444039,-151.25262251,0.00019205,2]
[368674243,1751291444049,-742.6949969,0.00019212,2]
[368674244,1751291444059,-267.308168,0.00019212,2]
[368674245,1751291444069,-151.0,0.00019212,2]
[368674246,1751291444079,-151.0,0.00019212,2]
[368674247,1751291444090,-500.0,0.00019229,2]
[368674248,1751291444102,-1034.0,0.00019229,2]
[368674249,1751291444112,-168.0,0.00019239,2]
[368674250,1751291444122,-500.0,0.00019256,2]
[368674251,1751291444132,-1034.0,0.00019256,2]
[368674252,1751291444141,-460.0,0.0001926,2]
[368674253,1751291444151,-1593.03,0.0001926,2]
[368674254,1751291444160,-1540.56,0.0001926,2]
[368674255,1751291444170,-460.0,0.0001926,2]
[368674256,1751291444179,-460.0,0.0001926,2]
[368674257,1751291444189,-1828.37,0.0001926,2]
[368674258,1751291444198,-1762.46,0.0001926,2]
[368674259,1751291444208,-2298.03,0.0001926,2]
[368674260,1751291444217,-460.0,0.0001926,2]
[368674261,1751291444227,-976.95,0.0001926,2]
[368674262,1751291444238,-460.0,0.0001926,2]
[368674263,1751291444247,-1105.53,0.0001926,2]
[368674264,1751291444257,-1087.71,0.0001926,2]
[368674265,1751291444266,-460.0,0.0001926,2]
[368674266,1751291444276,-460.0,0.0001926,2]
[368674267,1751291444286,-460.0,0.00019261,2]
[368674268,1751291444295,-460.0,0.00019261,2]
[368674269,1751291444305,-460.0,0.00019261,2]
[368674270,1751291444314,-460.0,0.00019261,2]
[368674271,1751291444324,-460.0,0.00019261,2]
[368674272,1751291444333,-1092.05,0.00019261,2]
[368674273,1751291444344,-460.0,0.00019261,2]
[368674274,1751291444354,-460.0,0.00019261,2]
[368674275,1751291444364,-460.0,0.00019261,2]
[368674276,1751291444374,-460.0,0.00019261,2]
[368674277,1751291444383,-460.0,0.00019261,2]
[368674278,1751291444393,-628.86,0.00019261,2]
[368674279,1751291444403,-460.0,0.00019261,2]
[368674280,1751291444412,-460.0,0.00019261,2]
[368674281,1751291444422,-1908.47,0.00019261,2]
[368674282,1751291444432,-152.302486,0.00019261,2]
[368674283,1751291444441,-151.0,0.00019261,2]
[368674284,1751291444451,-151.0,0.00019261,2]
[368674285,1751291444460,-460.0,0.00019261,2]
[368674286,1751291444470,-460.0,0.00019261,2]
[368674287,1751291444480,-151.0,0.00019261,2]
[368674288,1751291444489,-225.494757,0.00019261,2]
[368674289,1751291444498,-151.0,0.00019261,2]
[368674290,1751291444508,-460.0,0.00019261,2]
[368674291,1751291444517,-151.0,0.00019261,2]
[368674292,1751291444527,-151.0,0.00019261,2]
[368674293,1751291444537,-229.354144,0.00019261,2]
[368674294,1751291444546,-151.0,0.00019261,2]
[368674295,1751291444555,-460.0,0.00019261,2]
[368674296,1751291444565,-151.0,0.00019261,2]
[368674297,1751291444574,-2812.71,0.00019261,2]
[368674298,1751291444583,-193.383014,0.00019261,2]
[368674299,1751291444594,-151.0,0.00019261,2]
[368674300,1751291444603,-152.30005,0.00019261,2]
[368674301,1751291444613,-151.0,0.00019261,2]
[368674302,1751291444622,-151.0,0.00019261,2]
[368674303,1751291444632,-460.0,0.00019261,2]
[368674304,1751291444642,-151.0,0.00019261,2]
[368674305,1751291444652,-460.0,0.00019261,2]
[368674306,1751291444662,-675.68,0.00019261,2]
[368674307,1751291444672,-151.0,0.00019261,2]
[368674308,1751291444682,-460.0,0.00019261,2]
[368674309,1751291444692,-151.0,0.00019261,2]
[368674310,1751291444702,-721.25,0.00019261,2]
[368674311,1751291444712,-770.17471178,0.00019267,2]
[368674312,1751291444721,-339.0,0.00019283,2]
[368674313,1751291444732,-1034.0,0.00019283,2]
[368674314,1751291444742,-43614.19311032,0.00019304,2]
[368674315,1751291444752,-407331.86433,0.00019304,2]
[368674316,1751291444761,-1105.53,0.00019304,2]
[368674317,1751291444771,-460.0,0.00019305,2]
[368674318,1751291444780,-460.0,0.00019305,2]
[368674319,1751291444790,-530.12497975,0.00019305,2]
[368674320,1751291444800,-460.0,0.00019305,2]
[368674321,1751291444810,-460.0,0.00019305,2]
[368674322,1751291444820,-460.0,0.00019305,2]
[368674323,1751291444830,-460.0,0.00019305,2]
[368674324,1751291444840,-460.0,0.00019305,2]
[368674325,1751291444850,-460.0,0.00019305,2]
[368674326,1751291444860,-2766.7,0.00019305,2]
[368674327,1751291444870,-460.0,0.00019305,2]
[368674328,1751291444880,-1052.18,0.00019305,2]
[368674329,1751291444890,-462.36234047,0.00019306,2]
[368674330,1751291444900,-473.60142412,0.00019306,2]
[368674331,1751291444910,-460.0,0.00019306,2]
[368674332,1751291444920,-1105.53,0.00019306,2]
[368674333,1751291444931,-1105.53,0.00019306,2]
[368674334,1751291444941,-1105.53,0.00019306,2]
[368674335,1751291444950,-1105.53,0.00019306,2]
[368674336,1751291444959,-1105.65782392,0.00019306,2]
[368674337,1751291444970,-969.85,0.00019307,2]
[368674338,1751291444981,-620.84,0.00019307,2]
[368674339,1751291444991,-460.0,0.00019307,2]
[368674340,1751291445000,-460.0,0.00019307,2]
[368674341,1751291445010,-1523.76,0.00019307,2]
[368674342,1751291445020,-460.0,0.00019307,2]
[368674343,1751291445033,-671.53,0.00019307,2]
[368674344,1751291445043,-1247.67,0.00019307,2]
[368674345,1751291445053,-601.1,0.00019307,2]
[368674346,1751291445062,-1034.0,0.00019311,2]
[368674347,1751291445073,-798.67117612,0.00019322,2]
[368674348,1751291445083,-500.0,0.00019333,2]
[368674349,1751291445093,-327.33482435,0.00019333,2]
[368674350,1751291445103,-500.0,0.00019333,2]
[368674351,1751291445112,-500.0,0.00019333,2]
[368674352,1751291445121,-500.0,0.00019333,2]
[368674353,1751291445130,-500.0,0.00019333,2]
[368674354,1751291445139,-507.38068152,0.00019333,2]
[368674355,1751291445148,-500.0,0.00019335,2]
[368674356,1751291445158,-1034.0,0.00019338,2]
[368674357,1751291445167,-1034.0,0.00019366,2]
[368674358,1751291445177,-828.22200964,0.00019377,2]
[368674359,1751291445186,-20022.32824328,0.00019383,2]
[368674360,1751291445196,-1034.0,0.00019393,2]
[368674361,1751291445206,-151.0,0.000194,2]
[368674362,1751291445215,-151.0,0.000194,2]
[368674363,1751291445225,-1034.0,0.0001942,2]
[368674364,1751291445234,-858.86622399,0.00019432,2]
[368674365,1751291445243,-1034.0,0.00019448,2]
[368674366,1751291445252,-168.0,0.00019455,2]
[368674367,1751291445262,-500.0,0.00019456,2]
[368674368,1751291445272,-491.29844678,0.00019456,2]
[368674369,1751291445282,-184.44062151,0.00019456,2]
[368674370,1751291445292,-500.0,0.00019467,2]
[368674371,1751291445302,-500.97448561,0.00019467,2]
[368674372,1751291445311,-1034.0,0.00019475,2]
[368674373,1751291445321,-890.64427428,0.00019487,2]
[368674374,1751291445330,-151.0,0.000195,2]
[368674375,1751291445341,-1034.0,0.00019503,2]
[368674376,1751291445352,-153.0,0.00019507,2]
[368674377,1751291445361,-153.0,0.00019507,2]
[368674378,1751291445371,-153.0,0.00019507,2]
[368674379,1751291445380,-1034.0,0.0001953,2]
[368674380,1751291445390,-460.0,0.00019534,2]
[368674381,1751291445400,-1593.03,0.00019534,2]
[368674382,1751291445409,-1540.56,0.00019534,2]
[368674383,1751291445419,-460.0,0.00019534,2]
[368674384,1751291445427,-460.0,0.00019534,2]
[368674385,1751291445437,-1828.37,0.00019534,2]
[368674386,1751291445447,-1762.46,0.00019534,2]
[368674387,1751291445456,-2298.03,0.00019534,2]
[368674388,1751291445466,-460.0,0.00019534,2]
[368674389,1751291445476,-976.95,0.00019534,2]
[368674390,1751291445485,-460.0,0.00019534,2]
[368674391,1751291445494,-1087.71,0.00019534,2]
[368674392,1751291445503,-460.0,0.00019534,2]
[368674393,1751291445513,-460.0,0.00019534,2]
[368674394,1751291445522,-620.433025,0.00019534,2]
[368674395,1751291445531,-306.82598111,0.00019535,2]
[368674396,1751291445541,-460.0,0.00019535,2]
[368674397,1751291445550,-460.0,0.00019535,2]
[368674398,1751291445559,-460.0,0.00019535,2]
[368674399,1751291445569,-460.0,0.00019535,2]
[368674400,1751291445578,-1092.05,0.00019535,2]
[368674401,1751291445588,-460.0,0.00019535,2]
[368674402,1751291445598,-460.0,0.00019535,2]
[368674403,1751291445607,-460.0,0.00019535,2]
[368674404,1751291445617,-460.0,0.00019535,2]
[368674405,1751291445626,-460.0,0.00019535,2]
[368674406,1751291445636,-628.86,0.00019535,2]
[368674407,1751291445646,-460.0,0.00019535,2]
[368674408,1751291445655,-460.0,0.00019535,2]
[368674409,1751291445665,-1908.47,0.00019535,2]
[368674410,1751291445675,-460.0,0.00019535,2]
[368674411,1751291445684,-460.0,0.00019535,2]
[368674413,1751291445695,-460.0,0.00019535,2]
[368674414,1751291445705,-460.0,0.00019535,2]
[368674415,1751291445714,-2812.71,0.00019535,2]
[368674416,1751291445724,-460.0,0.00019535,2]
[368674417,1751291445734,-460.0,0.00019535,2]
[368674418,1751291445744,-675.68,0.00019535,2]
[368674419,1751291445754,-460.0,0.00019535,2]
[368674420,1751291445763,-721.25,0.00019535,2]
[368674421,1751291445773,-969.35719508,0.00019542,2]
[368674422,1751291445783,-1034.0,0.00019557,2]
[368674423,1751291445792,-1000.0,0.00019578,5]
[368674424,1751291445802,-460.0,0.00019579,2]
[368674426,1751291445812,-460.0,0.00019579,2]
[368674427,1751291445823,-460.0,0.00019579,2]
[368674428,1751291445834,-460.0,0.00019579,2]
[368674429,1751291445953,-460.0,0.00019579,2]
[368674430,1751291445964,-460.0,0.00019579,2]
[368674431,1751291445974,-460.0,0.00019579,2]
[368674432,1751291445983,-460.0,0.00019579,2]
[368674433,1751291445992,-2766.7,0.00019579,2]
[368674434,1751291446002,-460.0,0.00019579,2]
[368674435,1751291446011,-1052.18,0.00019579,2]
[368674436,1751291446021,-460.0,0.0001958,2]
[368674437,1751291446033,-245.0,0.00019581,2]
[368674438,1751291446043,-969.85,0.00019581,2]
[368674439,1751291446052,-620.84,0.00019581,2]
[368674440,1751291446062,-460.0,0.00019581,2]
[368674441,1751291446072,-460.0,0.00019581,2]
[368674442,1751291446087,-1523.76,0.00019581,2]
[368674443,1751291446105,-460.0,0.00019581,2]
[368674444,1751291446115,-671.53,0.00019581,2]
[368674445,1751291446125,-1247.67,0.00019581,2]
[368674446,1751291446135,-601.1,0.00019581,2]
[368674447,1751291446144,-1034.0,0.00019585,2]
[368674448,1751291446154,-159.319357,0.00019589,2]
[368674449,1751291446163,-168.0,0.00019597,2]
[368674450,1751291446173,-86230.33871708,0.00019599,2]
[368674451,1751291446182,-737.549181,0.00019599,2]
[368674452,1751291446192,-1050.0,0.00019612,2]
[368674453,1751291446202,-153.0,0.00019616,2]
[368674454,1751291446212,-689.0,0.00019643,2]
[368674455,1751291446221,-366.3004382,0.00019644,2]
[368674456,1751291446230,-366.3004382,0.00019644,2]
[368674457,1751291446239,-457.8524933,0.00019644,2]
[368674458,1751291446249,-5000.0,0.0001965,2]
[368674459,1751291446258,-25000.0,0.0001965,2]
[368674460,1751291446268,-151.0,0.0001965,2]
[368674461,1751291446278,-151.0,0.0001965,2]
[368674462,1751291446288,-151.0,0.0001965,2]
[368674463,1751291446297,-151.0,0.0001965,2]
[368674464,1751291446307,-151.0,0.0001965,2]
[368674465,1751291446316,-151.0,0.0001965,2]
[368674466,1751291446325,-151.0,0.0001965,2]
[368674467,1751291446335,-151.0,0.0001965,2]
[368674468,1751291446344,-151.0,0.0001965,2]
[368674469,1751291446353,-151.0,0.0001965,2]
[368674470,1751291446363,-151.0,0.0001965,2]
[368674471,1751291446372,-151.0,0.0001965,2]
[368674472,1751291446381,-151.0,0.0001965,2]
[368674473,1751291446390,-155.94386,0.0001968,3]
[368674474,1751291446400,-151.0,0.000198,2]
[368674475,1751291446409,-460.0,0.00019808,2]
[368674476,1751291446419,-1593.03,0.00019808,2]
[368674477,1751291446428,-1540.56,0.00019808,2]
[368674478,1751291446437,-460.0,0.00019808,2]
[368674480,1751291446446,-460.0,0.00019808,2]
[368674481,1751291446455,-1828.37,0.00019808,2]
[368674482,1751291446465,-1762.46,0.00019808,2]
[368674483,1751291446474,-2298.03,0.00019808,2]
[368674484,1751291446483,-460.0,0.00019808,2]
[368674485,1751291446492,-976.95,0.00019808,2]
[368674486,1751291446502,-460.0,0.00019808,2]
[368674487,1751291446511,-1087.71,0.00019808,2]
[368674488,1751291446520,-460.0,0.00019808,2]
[368674489,1751291446530,-460.0,0.00019808,2]
[368674490,1751291446539,-575.18015984,0.00019809,2]
[368674491,1751291446549,-460.0,0.00019809,2]
[368674492,1751291446558,-460.0,0.00019809,2]
[368674493,1751291446568,-460.0,0.00019809,2]
[368674494,1751291446577,-1092.05,0.00019809,2]
[368674495,1751291446586,-460.0,0.00019809,2]
[368674496,1751291446596,-60.42601983,0.00019809,2]
[368674497,1751291446715,-399.57398017,0.00019809,2]
[368674498,1751291446725,-460.0,0.00019809,2]
[368674499,1751291446734,-460.0,0.00019809,2]
[368674500,1751291446744,-460.0,0.00019809,2]
[368674501,1751291446754,-628.86,0.00019809,2]
[368674502,1751291446763,-460.0,0.00019809,2]
[368674503,1751291446773,-460.0,0.00019809,2]
[368674504,1751291446782,-1908.47,0.00019809,2]
[368674505,1751291446791,-460.0,0.00019809,2]
[368674506,1751291446800,-460.0,0.00019809,2]
[368674507,1751291446809,-460.0,0.00019809,2]
[368674508,1751291446820,-460.0,0.00019809,2]
[368674509,1751291446829,-2812.71,0.00019809,2]
[368674510,1751291446839,-460.0,0.00019809,2]
[368674511,1751291446849,-460.0,0.00019809,2]
[368674512,1751291446858,-675.68,0.00019809,2]
[368674513,1751291446868,-460.0,0.00019809,2]
[368674514,1751291446877,-721.25,0.00019809,2]
[368674515,1751291446886,-160.0,0.00019815,3]
[368674516,1751291446895,-1028.61958737,0.00019818,2]
[368674517,1751291446905,-670.919,0.0001982,2]
[368674518,1751291446915,-313.33711761,0.00019853,2]
[368674519,1751291446993,-146.66288239,0.00019853,2]
[368674520,1751291447003,-354.50131613,0.00019853,2]
[368674521,1751291447012,-460.0,0.00019853,2]
[368674522,1751291447023,-460.0,0.00019853,2]
[368674523,1751291447033,-460.0,0.00019853,2]
[368674524,1751291447043,-201.79594867,0.00019853,2]
[368674525,1751291447054,-258.20405133,0.00019853,2]
[368674526,1751291447065,-460.0,0.00019853,2]
[368674527,1751291447075,-460.0,0.00019853,2]
[368674528,1751291447085,-942.51616112,0.00019853,2]
[368674529,1751291447373,-460.0,0.00018438,2]
[368674530,1751291447383,-460.0,0.00018712,2]
[368674531,1751291447392,-460.0,0.00018986,2]
[368674532,1751291447402,-460.0,0.0001926,2]
[368674533,1751291447411,-460.0,0.00019534,2]
[368674534,1751291447420,-460.0,0.00019808,2]
[368674535,1751291447428,-1824.18383888,0.00019853,2]
[368674536,1751291447437,-460.0,0.00019853,2]
[368674537,1751291447446,-1052.18,0.00019853,2]
[368674538,1751291447456,-151.0,0.00019853,2]
[368674539,1751291447465,-151.0,0.00019853,2]
[368674540,1751291447474,-460.0,0.00019854,2]
[368674541,1751291447483,-969.85,0.00019855,2]
[368674542,1751291447493,-620.84,0.00019855,2]
[368674543,1751291447502,-255.28396051,0.00019855,2]
[368674544,1751291447512,-1523.76,0.00019855,2]
[368674545,1751291447521,-460.0,0.00019855,2]
[368674546,1751291447531,-671.53,0.00019855,2]
[368674547,1751291447540,-1247.67,0.00019855,2]
[368674548,1751291447549,-601.1,0.00019855,2]
[368674549,1751291447559,-351.98885382,0.00019856,2]
[368674550,1751291447568,-1406.54745985,0.00019856,2]
[368674551,1751291447577,-186.77900973,0.00019863,2]
[368674552,1751291447587,-1000.0,0.00019881,2]
[368674553,1751291447598,-1000.0,0.00019883,2]
[368674554,1751291447607,-4810.38506419,0.000199,2]
[368674555,1751291447617,-689.0,0.00019965,2]
[368674556,1751291447626,-186.77900973,0.00019973,2]
[368674557,1751291447635,-64803.15933249,0.00019999,2]
[368674558,1751291447645,-151.0,0.0002,3]
[368674559,1751291447655,-656.93732424,0.0002,2]
[368674560,1751291447665,-300.0,0.0002,2]
[368674561,1751291447675,-4000.0,0.0002,4]
[368674562,1751291447684,-420.0,0.00020002,2]
[368674563,1751291447694,-420.0,0.00020002,2]
[368674564,1751291447703,-150.0,0.00020003,2]
[368674565,1751291447713,-150.0,0.00020003,2]
[368674566,1751291447722,-176.819,0.00020003,2]
[368674567,1751291447732,-1000.0,0.00020004,2]
[368674568,1751291447741,-1000.0,0.00020015,2]
[368674569,1751291447751,-500.0,0.00020018,2]
[368674570,1751291447760,-4810.38506417,0.00020038,2]
[368674571,1751291447770,-186.77900973,0.00020055,2]
[368674572,1751291447779,-151.0,0.00020082,2]
[368674573,1751291447788,-183.381365,0.00020082,2]
[368674574,1751291447797,-460.0,0.00020082,2]
[368674575,1751291447806,-183.381365,0.00020082,2]
[368674576,1751291447816,-151.0,0.00020082,2]
[368674577,1751291447825,-1593.03,0.00020082,2]
[368674578,1751291447835,-1540.56,0.00020082,2]
[368674579,1751291447844,-460.0,0.00020082,2]
[368674580,1751291447854,-460.0,0.00020082,2]
[368674581,1751291447875,-151.0,0.00020082,2]
[368674582,1751291447885,-151.0,0.00020082,2]
[368674583,1751291447894,-1828.37,0.00020082,2]
[368674584,1751291447904,-311.356251,0.00020082,2]
[368674585,1751291447914,-311.356251,0.00020082,2]
[368674586,1751291447923,-1762.46,0.00020082,2]
[368674587,1751291447933,-2298.03,0.00020082,2]
[368674588,1751291447943,-460.0,0.00020082,2]
[368674589,1751291447953,-976.95,0.00020082,2]
[368674590,1751291447962,-460.0,0.00020082,2]
[368674591,1751291447971,-1087.71,0.00020082,2]
[368674592,1751291447981,-278.022671,0.00020082,2]
[368674593,1751291447991,-151.0,0.00020082,2]
[368674594,1751291448001,-460.0,0.00020082,2]
[368674595,1751291448010,-151.0,0.00020082,2]
[368674596,1751291448019,-460.0,0.00020082,2]
[368674597,1751291448032,-151.0,0.00020083,2]
[368674598,1751291448041,-151.0,0.00020083,2]
[368674599,1751291448051,-151.0,0.00020083,2]
[368674600,1751291448061,-151.0,0.00020083,2]
[368674601,1751291448072,-151.0,0.00020083,2]
[368674602,1751291448082,-460.0,0.00020083,2]
[368674603,1751291448093,-460.0,0.00020083,2]
[368674604,1751291448104,-566.7,0.00020083,2]
[368674605,1751291448114,-1092.05,0.00020083,2]
[368674606,1751291448125,-460.0,0.00020083,2]
[368674607,1751291448134,-460.0,0.00020083,2]
[368674608,1751291448146,-460.0,0.00020083,2]
[368674609,1751291448156,-460.0,0.00020083,2]
[368674610,1751291448166,-460.0,0.00020083,2]
[368674611,1751291448175,-628.86,0.00020083,2]
[368674612,1751291448185,-460.0,0.00020083,2]
[368674613,1751291448195,-460.0,0.00020083,2]
[368674614,1751291448204,-1908.47,0.00020083,2]
[368674615,1751291448214,-151.0,0.00020083,2]
[368674616,1751291448224,-460.0,0.00020083,2]
[368674617,1751291448233,-460.0,0.00020083,2]
[368674618,1751291448243,-233.508776,0.00020083,2]
[368674619,1751291448252,-460.0,0.00020083,2]
[368674620,1751291448263,-151.0,0.00020083,2]
[368674621,1751291448273,-151.0,0.00020083,2]
[368674622,1751291448283,-460.0,0.00020083,2]
[368674623,1751291448293,-151.0,0.00020083,2]
[368674624,1751291448302,-2812.71,0.00020083,2]
[368674625,1751291448312,-186.939808,0.00020083,2]
[368674626,1751291448323,-460.0,0.00020083,2]
[368674627,1751291448333,-460.0,0.00020083,2]
[368674628,1751291448344,-675.68,0.00020083,2]
[368674629,1751291448354,-721.25,0.00020083,2]
[368674630,1751291448363,-900.0,0.000201,3]
[368674631,1751291448373,-1680.0,0.000201,2]
[368674632,1751291448383,-151.0,0.00020109,2]
[368674633,1751291448393,-151.0,0.00020109,2]
[368674634,1751291448402,-151.0,0.00020109,2]
[368674635,1751291448412,-151.0,0.00020109,2]
[368674636,1751291448422,-151.0,0.00020109,2]
[368674637,1751291448431,-460.0,0.00020127,2]
[368674638,1751291448440,-460.0,0.00020127,2]
[368674639,1751291448450,-460.0,0.00020127,2]
[368674640,1751291448460,-151.0,0.00020127,2]
[368674641,1751291448469,-151.0,0.00020127,2]
[368674642,1751291448479,-151.0,0.00020127,2]
[368674643,1751291448489,-151.0,0.00020127,2]
[368674644,1751291448498,-460.0,0.00020127,2]
[368674645,1751291448508,-460.0,0.00020127,2]
[368674646,1751291448518,-460.0,0.00020127,2]
[368674647,1751291448527,-2766.7,0.00020127,2]
[368674648,1751291448536,-460.0,0.00020127,2]
[368674649,1751291448547,-1052.18,0.00020127,2]
[368674650,1751291448556,-151.0,0.00020128,2]
[368674651,1751291448566,-151.0,0.00020128,2]
[368674652,1751291448575,-460.0,0.00020128,2]
[368674653,1751291448739,-151.0,0.00020128,2]
[368674654,1751291448750,-151.0,0.00020128,2]
[368674655,1751291448759,-151.0,0.00020128,2]
[368674656,1751291448769,-151.0,0.00020129,2]
[368674657,1751291448778,-152.097823,0.00020129,2]
[368674658,1751291448788,-151.0,0.00020129,2]
[368674659,1751291448798,-151.0,0.00020129,2]
[368674660,1751291448807,-151.0,0.00020129,2]
[368674661,1751291448817,-151.0,0.00020129,2]
[368674662,1751291448827,-151.0,0.00020129,2]
[368674663,1751291448836,-151.0,0.00020129,2]
[368674664,1751291448848,-969.85,0.00020129,2]
[368674665,1751291448857,-620.84,0.00020129,2]
[368674666,1751291448870,-1523.76,0.00020129,2]
[368674667,1751291448880,-460.0,0.00020129,2]
[368674668,1751291448891,-671.53,0.00020129,2]
[368674669,1751291448902,-1247.67,0.00020129,2]
[368674670,1751291448912,-601.1,0.00020129,2]
[368674671,1751291448923,-966.0,0.0002016,2]
[368674672,1751291448933,-670.0,0.0002016,2]
[368674673,1751291448944,-2151.0,0.0002016,2]
[368674674,1751291448954,-403.956,0.0002016,2]
[368674675,1751291448963,-423.35,0.0002016,2]
[368674676,1751291448973,-150.0,0.0002016,2]
[368674677,1751291448982,-150.0,0.0002016,2]
[368674678,1751291448992,-257.0,0.0002016,2]
[368674679,1751291449002,-151.0,0.0002016,2]
[368674680,1751291449012,-186.77900973,0.00020164,2]
[368674681,1751291449023,-4810.38506417,0.00020176,2]
[368674682,1751291449034,-151.0,0.00020176,2]
[368674683,1751291449044,-151.0,0.00020176,2]
[368674684,1751291449054,-327.02103,0.00020187,2]
[368674685,1751291449064,-5000.0,0.00020198,2]
[368674686,1751291449075,-151.0,0.00020198,2]
[368674687,1751291449086,-186.77900973,0.00020247,2]
[368674688,1751291449096,-251.0,0.00020274,3]
[368674689,1751291449108,-3330.0,0.00020288,2]
[368674690,1751291449117,-151.0,0.000203,3]
[368674691,1751291449127,-4810.38506417,0.00020314,3]
[368674692,1751291449137,-460.0,0.00020356,2]
[368674693,1751291449146,-1593.03,0.00020356,2]
[368674694,1751291449155,-1540.56,0.00020356,2]
[368674695,1751291449165,-460.0,0.00020356,2]
[368674696,1751291449175,-460.0,0.00020356,2]
[368674697,1751291449187,-1828.37,0.00020356,2]
[368674698,1751291449197,-1762.46,0.00020356,2]
[368674699,1751291449210,-2298.03,0.00020356,2]
[368674700,1751291449224,-592.79,0.00020356,2]
[368674701,1751291449233,-976.95,0.00020356,2]
[368674702,1751291449242,-460.0,0.00020356,2]
[368674703,1751291449253,-1087.71,0.00020356,2]
[368674704,1751291449263,-460.0,0.00020356,2]
[368674705,1751291449272,-460.0,0.00020356,2]
[368674706,1751291449281,-186.77900973,0.00020356,2]
[368674707,1751291449291,-460.0,0.00020357,2]
[368674708,1751291449301,-469.32,0.00020357,2]
[368674709,1751291449310,-1092.05,0.00020357,2]
[368674710,1751291449320,-460.0,0.00020357,2]
[368674711,1751291449329,-460.0,0.00020357,2]
[368674712,1751291449340,-460.0,0.00020357,2]
[368674713,1751291449349,-460.0,0.00020357,2]
[368674714,1751291449359,-460.0,0.00020357,2]
[368674715,1751291449368,-477.05057991,0.00020357,2]
[368674716,1751291449413,-151.80942009,0.00020357,2]
[368674717,1751291449423,-185.11302753,0.00020357,2]
[368674718,1751291449434,-254.45860606,0.00020357,2]
[368674719,1751291450621,-460.0,0.00018439,2]
[368674720,1751291450631,-460.0,0.00018713,2]
[368674721,1751291450640,-460.0,0.00018987,2]
[368674722,1751291450649,-151.0,0.00019261,2]
[368674723,1751291450658,-460.0,0.00019261,2]
[368674724,1751291450667,-366.3004382,0.00019644,2]
[368674725,1751291450676,-151.0,0.0001965,2]
[368674726,1751291450686,-460.0,0.00020082,2]
[368674727,1751291450695,-20.42836641,0.00020357,2]
[368674728,1751291450704,-1908.47,0.00020357,2]
[368674729,1751291450714,-460.0,0.00020357,2]